bitfinex-derivatives/quotes_BTCF0:USTF0_20250905
["timestamp","ask_amount","ask_price","bid_price","bid_amount"]
[1757041935499,0.30069812,111250.0,111240.0,0.38106]
[1757041935701,0.30069812,111250.0,111240.0,0.39389]
[1757041936086,0.30069812,111250.0,111240.0,0.39689]
[1757041936402,0.30069812,111250.0,111240.0,0.38406]
[1757041936806,0.30069812,111250.0,111240.0,0.39689]
[1757041937003,0.30069812,111250.0,111240.0,0.39889]
[1757041937395,0.30069812,111250.0,111240.0,0.38606]
[1757041937701,0.30069812,111250.0,111240.0,0.38406]
[1757041938088,0.3095975,111250.0,111240.0,0.38106]
[1757041938294,0.3095975,111250.0,111240.0,0.39389]
[1757041938508,0.04379938,111250.0,111240.0,0.38106]
[1757041938704,0.3095975,111250.0,111240.0,0.38106]
[1757041939200,0.57539562,111250.0,111240.0,0.36]
[1757041939402,0.03544,111240.0,111230.0,0.00449]
[1757041939697,0.56703624,111240.0,111230.0,0.00449]
[1757041939907,0.81703624,111240.0,111230.0,0.02554]
[1757041944908,0.81703624,111240.0,111230.0,0.00449]
[1757041948007,0.56703624,111240.0,111230.0,0.00449]
[1757041948495,1.40279624,111240.0,111230.0,0.00449]
[1757041950308,0.56703624,111240.0,111230.0,0.02554]
[1757041950501,1.40227624,111240.0,111230.0,0.02554]
[1757041950908,0.56703624,111240.0,111230.0,0.02554]
[1757041951199,0.02166,111240.0,111230.0,0.03837]
[1757041951404,0.55325624,111240.0,111230.0,0.40837]
[1757041951614,0.02166,111240.0,111230.0,0.65837]
[1757041951904,0.28745812,111240.0,111230.0,0.28837]
[1757041952102,0.56703624,111240.0,111230.0,0.28837]
[1757041952509,0.55325624,111240.0,111230.0,0.28837]
[1757041952806,0.55325624,111240.0,111230.0,0.66837]
[1757041953006,0.55325624,111240.0,111230.0,0.62837]
[1757041953202,0.55325624,111240.0,111230.0,0.28837]
[1757041953408,0.55325624,111240.0,111230.0,0.65388]
[1757041954107,0.55325624,111240.0,111230.0,0.28388]
[1757041954605,0.55325624,111240.0,111230.0,0.65388]
[1757041954914,0.55325624,111240.0,111230.0,0.63388]
[1757041955304,0.55325624,111240.0,111230.0,0.28388]
[1757041955503,0.56703624,111240.0,111230.0,0.02105]
[1757041956508,0.56703624,111240.0,111220.0,0.01742]
[1757041956808,0.30123812,111230.0,111220.0,0.02564]
[1757041957007,1.20735119,111230.0,111220.0,0.02554]
[1757041957709,1.20735119,111230.0,111220.0,0.02654]
[1757041958112,1.20735119,111230.0,111220.0,0.03837]
[1757041958409,1.20735119,111230.0,111220.0,0.02654]
[1757041958910,1.20735119,111230.0,111220.0,0.02754]
[1757041960308,0.37211119,111230.0,111220.0,0.02754]
[1757041960510,1.20647119,111230.0,111220.0,0.02754]
[1757041960708,0.37211119,111230.0,111220.0,0.02754]
[1757041961210,1.20631119,111230.0,111220.0,0.02754]
[1757041962700,0.37211119,111230.0,111220.0,0.04037]
[1757041962901,1.20603119,111230.0,111220.0,0.04037]
[1757041963101,0.35833119,111230.0,111220.0,0.04037]
[1757041963296,1.19221119,111230.0,111220.0,0.04037]
[1757041963600,1.19221119,111230.0,111220.0,0.40037]
[1757041963806,0.09253307,111230.0,111220.0,0.40037]
[1757041964195,0.09253307,111230.0,111220.0,0.04037]
[1757041964397,0.35833119,111230.0,111220.0,0.39037]
[1757041964607,0.35833119,111230.0,111220.0,0.04037]
[1757041965010,0.35833119,111230.0,111220.0,0.39037]
[1757041965401,0.0001,111240.0,111220.0,0.90616812]
[1757041965603,0.28785812,111240.0,111230.0,0.0367]
[1757041965812,0.28775812,111240.0,111230.0,0.3967]
[1757041966113,0.55355624,111240.0,111230.0,0.0367]
[1757041966813,0.55355624,111240.0,111230.0,0.4167]
[1757041967313,0.55355624,111240.0,111230.0,0.0367]
[1757041967711,0.55355624,111240.0,111230.0,0.3467]
[1757041969007,0.02196,111240.0,111230.0,0.3467]
[1757041969213,0.55355624,111240.0,111230.0,0.0367]
[1757041969413,0.55355624,111240.0,111230.0,0.3867]
[1757041969714,0.55355624,111240.0,111230.0,0.0367]
[1757041969916,0.55355624,111240.0,111230.0,0.3867]
[1757041970308,0.55355624,111240.0,111230.0,0.0367]
[1757041970510,0.28775812,111240.0,111230.0,0.0367]
[1757041970710,0.28775812,111240.0,111230.0,0.3767]
[1757041970912,0.28775812,111240.0,111230.0,0.0367]
[1757041971114,0.28775812,111240.0,111230.0,0.3467]
[1757041971307,0.02196,111240.0,111230.0,0.61249812]
[1757041971504,0.28775812,111240.0,111230.0,0.61249812]
[1757041972304,0.26589812,111250.0,111230.0,0.86249812]
[1757041972514,0.28785812,111250.0,111240.0,0.0367]
[1757041972813,0.28775812,111250.0,111240.0,0.0367]
[1757041973417,0.28775812,111250.0,111240.0,0.4167]
[1757041974116,0.28875812,111250.0,111240.0,0.4167]
[1757041974317,0.29760651,111250.0,111240.0,0.0367]
[1757041974518,0.28875812,111250.0,111240.0,0.0367]
[1757041975921,0.28975812,111250.0,111240.0,0.3967]
[1757041976621,0.28975812,111250.0,111240.0,0.40119]
[1757041977120,0.02396,111250.0,111240.0,0.40119]
[1757041977320,0.28975812,111250.0,111240.0,0.40119]
[1757041977514,0.28975812,111250.0,111240.0,0.04119]
[1757041977817,0.28975812,111250.0,111240.0,0.35119]
[1757041978721,0.29887677,111250.0,111240.0,0.35119]
[1757041979416,0.26949078,111250.0,111240.0,0.35119]
[1757041982219,0.26949078,111250.0,111240.0,0.04119]
[1757041982516,0.26949078,111250.0,111240.0,0.35119]
[1757041983221,0.26949078,111250.0,111240.0,0.04119]
[1757041983623,0.26949078,111250.0,111240.0,0.40119]
[1757041983822,0.03307865,111250.0,111240.0,0.40119]
[1757041984222,0.26949078,111250.0,111240.0,0.40119]
[1757041985720,0.26949078,111250.0,111240.0,0.06119]
[1757041985913,0.26949078,111250.0,111240.0,0.39119]
[1757041986114,0.26949078,111250.0,111240.0,0.04119]
[1757041986520,0.03307865,111250.0,111240.0,0.41119]
[1757041986723,0.26949078,111250.0,111240.0,0.41119]
[1757041986914,0.26949078,111250.0,111240.0,0.04119]
[1757041987414,0.26949078,111250.0,111240.0,0.42119]
[1757041987722,0.26949078,111250.0,111240.0,0.04119]
[1757041989515,0.53245078,111250.0,111240.0,0.02773]
[1757041989721,0.53245078,111250.0,111240.0,0.00449]
[1757041993222,0.79438746,111250.0,111240.0,0.00449]
[1757041995229,0.79438746,111250.0,111220.0,0.0001]
[1757041995429,0.27153213,111230.0,111220.0,0.02163]
[1757041995621,0.27153213,111230.0,111220.0,0.02153]
[1757041996533,0.27153213,111230.0,111220.0,0.02253]
[1757041996830,0.27153213,111230.0,111220.0,0.02353]
[1757041997136,0.34336887,111230.0,111220.0,0.02353]
[1757041997430,0.93288887,111230.0,111220.0,0.02353]
[1757041998221,1.17320887,111230.0,111220.0,0.02353]
[1757042007650,1.17176887,111230.0,111220.0,0.02353]
[1757042008451,1.17176887,111230.0,111220.0,0.002]
[1757042009447,1.17176887,111230.0,111220.0,0.02353]
[1757042011052,0.34336887,111230.0,111220.0,0.02353]
[1757042011254,1.17244887,111230.0,111220.0,0.02353]
[1757042012652,1.17244887,111230.0,111220.0,0.002]
[1757042012954,1.17236887,111230.0,111220.0,0.002]
[1757042013457,1.17236887,111230.0,111220.0,0.02353]
[1757042014950,1.17236887,111230.0,111220.0,0.002]
[1757042016154,1.17236887,111230.0,111220.0,0.02353]
[1757042017451,1.17236887,111230.0,111220.0,0.002]
[1757042025254,0.34336887,111230.0,111220.0,0.002]
[1757042025458,1.17104887,111230.0,111220.0,0.02353]
[1757042025959,1.17100887,111230.0,111220.0,0.02353]
[1757042026155,0.34336887,111230.0,111220.0,0.41743]
[1757042026360,0.98449887,111230.0,111220.0,0.03743]
[1757042026660,1.17153887,111230.0,111220.0,0.40743]
[1757042027259,1.17153887,111230.0,111220.0,0.03743]
[1757042027463,1.17153887,111230.0,111220.0,0.39743]
[1757042027865,1.17153887,111230.0,111220.0,0.03743]
[1757042029050,1.17153887,111230.0,111220.0,0.39743]
[1757042029659,1.17153887,111230.0,111220.0,0.03743]
[1757042030062,1.17153887,111230.0,111220.0,0.36743]
[1757042030759,1.17153887,111230.0,111220.0,0.02353]
[1757042031659,1.17153887,111230.0,111220.0,0.33353]
[1757042031865,1.17153887,111230.0,111220.0,0.35353]
[1757042032559,1.17153887,111230.0,111220.0,0.02353]
[1757042033664,1.17153887,111230.0,111220.0,0.34353]
[1757042034865,1.17153887,111230.0,111220.0,0.02353]
[1757042035962,1.17153887,111230.0,111220.0,0.38353]
[1757042036257,1.17153887,111230.0,111220.0,0.02353]
[1757042036458,1.17153887,111230.0,111220.0,0.40353]
[1757042036659,1.17153887,111230.0,111220.0,0.02353]
[1757042038167,1.17153887,111230.0,111220.0,0.33353]
[1757042038863,0.09432674,111230.0,111220.0,0.03743]
[1757042039066,0.01273,111240.0,111230.0,0.03672]
[1757042039067,0.42063,111240.0,111230.0,0.03672]
[1757042039268,0.25798213,111240.0,111230.0,0.36672]
[1757042039463,0.25798213,111240.0,111230.0,0.03672]
[1757042039768,0.25798213,111240.0,111230.0,0.36672]
[1757042040172,0.25798213,111240.0,111230.0,0.61672]
[1757042040467,0.02357,111240.0,111230.0,0.61672]
[1757042041067,0.02557,111240.0,111230.0,0.61672]
[1757042041268,0.02557,111240.0,111230.0,0.36672]
[1757042041470,0.29156403,111240.0,111230.0,0.40672]
[1757042042663,0.29156403,111240.0,111230.0,0.03672]
[1757042042864,0.29156403,111240.0,111230.0,0.40672]
[1757042046066,0.29156403,111240.0,111230.0,0.39672]
[1757042046471,0.29156403,111240.0,111230.0,0.03672]
[1757042046971,0.29156403,111240.0,111230.0,0.39672]
[1757042060802,0.29156403,111240.0,111230.0,0.41672]
[1757042061793,0.29156403,111240.0,111230.0,0.38672]
[1757042062401,0.29156403,111240.0,111230.0,0.03672]
[1757042063499,0.29156403,111240.0,111230.0,0.34672]
[1757042064003,0.02557,111240.0,111230.0,0.34672]
[1757042064200,0.02557,111240.0,111230.0,0.03672]
[1757042064502,0.29156403,111240.0,111230.0,0.38672]
[1757042067609,0.29156403,111240.0,111230.0,0.03672]
[1757042067809,0.29156403,111240.0,111230.0,0.37672]
[1757042069205,0.57097806,111240.0,111230.0,0.02282]
[1757042069811,0.03586,111230.0,111220.0,0.02223]
[1757042070006,0.03586,111230.0,111220.0,0.38213]
[1757042070007,0.30185403,111230.0,111220.0,0.38213]
[1757042072610,0.30285403,111230.0,111220.0,0.38213]
[1757042072811,0.30385403,111230.0,111220.0,0.38213]
[1757042076818,0.30385403,111230.0,111220.0,0.02213]
[1757042077115,0.30385403,111230.0,111220.0,0.35213]
[1757042077318,0.30385403,111230.0,111220.0,0.02213]
[1757042077616,0.30385403,111230.0,111220.0,0.38213]
[1757042078819,0.29043403,111230.0,111220.0,0.37484]
[1757042079015,0.29043403,111230.0,111220.0,0.03484]
[1757042079216,0.29043403,111230.0,111220.0,0.38484]
[1757042079413,0.02444,111230.0,111220.0,0.38484]
[1757042079714,0.29043403,111230.0,111220.0,0.38484]
[1757042083312,0.02444,111230.0,111220.0,0.38484]
[1757042083610,0.29043403,111230.0,111220.0,0.38484]
[1757042086024,0.02444,111230.0,111220.0,0.38484]
[1757042086214,0.29043403,111230.0,111220.0,0.38484]
[1757042089524,0.02444,111230.0,111220.0,0.38484]
[1757042089824,0.29043403,111230.0,111220.0,0.38484]
[1757042100536,0.02444,111230.0,111220.0,0.03484]
[1757042100729,0.29043403,111230.0,111220.0,0.36484]
[1757042101331,0.02444,111230.0,111220.0,0.36484]
[1757042101637,0.29043403,111230.0,111220.0,0.36484]
[1757042103239,0.29043403,111230.0,111220.0,0.03484]
[1757042103438,0.26093934,111230.0,111220.0,0.03484]
[1757042103634,0.26093934,111230.0,111220.0,0.40484]
[1757042104731,0.02444,111230.0,111220.0,0.40484]
[1757042104936,0.26093934,111230.0,111220.0,0.40484]
[1757042107842,0.002,111230.0,111220.0,0.65484]
[1757042120258,0.002,111230.0,111220.0,0.98124224]
[1757042121359,0.0001,111240.0,111230.0,0.1257448]
[1757042121551,0.0001,111250.0,111240.0,0.05384884]
[1757042121752,0.25807934,111260.0,111250.0,0.03585]
[1757042121952,0.25797934,111260.0,111250.0,0.37585]
[1757042122558,0.02148,111260.0,111250.0,0.37585]
[1757042122959,0.03546356,111260.0,111250.0,0.37585]
[1757042123155,0.02648,111260.0,111250.0,1.20017]
[1757042123352,0.005,111260.0,111250.0,1.20017]
[1757042123753,0.008,111260.0,111250.0,1.20017]
[1757042125461,0.006,111260.0,111250.0,1.20017]
[1757042125858,0.005,111260.0,111250.0,1.20017]
[1757042126655,0.005,111260.0,111250.0,1.29919807]
[1757042126859,0.005,111260.0,111250.0,1.37060485]
[1757042127060,0.005,111260.0,111250.0,1.29919807]
[1757042127765,0.005,111260.0,111250.0,1.53569741]
[1757042127965,0.005,111260.0,111250.0,1.29919807]
[1757042128366,0.002,111260.0,111250.0,1.29919807]
[1757042128566,0.004,111260.0,111250.0,1.29919807]
[1757042128762,0.004,111260.0,111250.0,1.2900487]
[1757042128957,0.004,111260.0,111250.0,1.20017]
[1757042130265,0.004,111260.0,111250.0,1.19997]
[1757042131368,0.004,111260.0,111250.0,1.27318155]
[1757042135870,0.004,111260.0,111250.0,1.36306025]
[1757042136258,0.004,111260.0,111250.0,1.59955959]
[1757042141371,0.004,111260.0,111250.0,0.53894025]
[1757042141576,0.004,111260.0,111250.0,1.27294155]
[1757042141980,0.004,111260.0,111250.0,1.50944089]
[1757042142778,0.004,111260.0,111250.0,1.59931959]
[1757042143678,0.004,111260.0,111250.0,1.36282025]
[1757042144078,0.004,111260.0,111250.0,1.59931959]
[1757042144982,0.004,111260.0,111250.0,1.36282025]
[1757042145280,0.004,111260.0,111250.0,1.59931959]
[1757042145982,0.004,111260.0,111250.0,1.50944089]
[1757042150082,0.004,111260.0,111250.0,1.59931959]
[1757042153485,0.0001,111270.0,111260.0,0.1246606]
[1757042153693,0.0001,111280.0,111270.0,0.03479]
[1757042153979,0.25939934,111290.0,111280.0,0.03479]
[1757042154183,0.04818037,111290.0,111280.0,0.35479]
[1757042154782,0.28467971,111290.0,111280.0,0.35479]
[1757042154986,0.04818037,111290.0,111280.0,0.35479]
[1757042155184,0.28467971,111290.0,111280.0,0.35479]
[1757042155379,0.28767971,111290.0,111280.0,0.35479]
[1757042155781,0.28767971,111290.0,111280.0,0.03479]
[1757042155988,0.26229934,111290.0,111280.0,0.03479]
[1757042156180,0.28768675,111290.0,111280.0,0.37479]
[1757042156381,0.28968675,111290.0,111280.0,0.03479]
[1757042157889,0.28968675,111290.0,111280.0,0.39479]
[1757042158085,0.28968675,111290.0,111280.0,0.03479]
[1757042158276,0.26429934,111290.0,111280.0,0.38479]
[1757042158680,0.26429934,111290.0,111280.0,0.03479]
[1757042159281,0.27716934,111290.0,111280.0,0.03479]
[1757042164291,0.26429934,111290.0,111280.0,0.03479]
[1757042165497,0.29360579,111290.0,111280.0,0.03479]
[1757042177515,0.01319,111280.0,111270.0,0.02316]
[1757042177719,0.03432,111270.0,111260.0,0.02316]
[1757042177908,0.56593158,111270.0,111250.0,0.08583155]
[1757042178117,0.30012579,111260.0,111250.0,0.30899155]
[1757042178419,0.30012579,111260.0,111250.0,0.29637155]
[1757042179620,0.30012579,111260.0,111250.0,0.29737155]
[1757042180121,0.30911243,111260.0,111250.0,0.31096155]
[1757042181221,0.30911243,111260.0,111250.0,0.30996155]
[1757042181422,0.04430664,111260.0,111250.0,0.30996155]
[1757042181622,0.31011243,111260.0,111250.0,0.30996155]
[1757042182217,0.29692243,111260.0,111250.0,0.30996155]
[1757042184025,0.31011243,111260.0,111250.0,0.29637155]
[1757042184418,0.31011243,111260.0,111250.0,0.22316]
[1757042189530,0.31011243,111260.0,111250.0,0.2]
[1757042189831,0.31011243,111260.0,111250.0,0.22316]
[1757042194735,0.04430664,111260.0,111250.0,0.22316]
[1757042194941,0.31011243,111260.0,111250.0,0.22316]
[1757042196933,0.29692243,111260.0,111250.0,0.50255579]
[1757042197631,0.02213,111260.0,111250.0,0.50255579]
[1757042197832,0.28793579,111260.0,111250.0,0.50255579]
[1757042199942,0.001,111260.0,111250.0,0.82379001]
[1757042200745,0.001,111260.0,111250.0,1.64695001]
[1757042201646,0.26590579,111270.0,111250.0,1.64695001]
[1757042201844,0.28703579,111270.0,111260.0,0.30255579]
[1757042202144,0.28693579,111270.0,111260.0,0.66255579]
[1757042203536,0.0303548,111280.0,111270.0,0.03675]
[1757042203740,0.29606059,111280.0,111270.0,0.66255579]
[1757042204143,0.29606059,111280.0,111270.0,0.39675]
[1757042205748,0.29706059,111280.0,111270.0,0.39675]
[1757042207150,0.29706059,111280.0,111270.0,0.66255579]
[1757042207652,0.29706059,111280.0,111270.0,0.39675]
[1757042209047,0.29706059,111280.0,111270.0,0.66255579]
[1757042210554,0.0101248,111280.0,111270.0,0.66255579]
[1757042211362,0.001,111280.0,111270.0,1.48547579]
[1757042211564,0.02389,111280.0,111270.0,1.48547579]
[1757042212964,0.02389,111280.0,111270.0,1.21967]
[1757042213166,0.28969579,111280.0,111270.0,1.48547579]
[1757042213365,0.28969579,111280.0,111270.0,0.66255579]
[1757042213560,0.28969579,111280.0,111270.0,0.68255579]
[1757042213964,0.28969579,111280.0,111270.0,0.04675]
[1757042214165,0.28969579,111280.0,111270.0,0.31255579]
[1757042214466,0.2986931,111280.0,111270.0,0.30255579]
[1757042214668,0.2986931,111280.0,111270.0,0.67255579]
[1757042214968,0.2986931,111280.0,111270.0,0.04675]
[1757042215155,0.2986931,111280.0,111270.0,0.39675]
[1757042215360,0.2986931,111280.0,111270.0,0.04675]
[1757042216368,0.2986931,111280.0,111270.0,0.03675]
[1757042216571,0.2986931,111280.0,111270.0,0.04675]
[1757042217270,0.2986931,111280.0,111270.0,0.37675]
[1757042218370,0.2986931,111280.0,111270.0,0.36675]
[1757042218570,0.2986931,111280.0,111270.0,0.63255579]
[1757042222874,0.2986931,111280.0,111270.0,0.36675]
[1757042223276,0.2986931,111280.0,111270.0,0.63255579]
[1757042223472,0.2986931,111280.0,111270.0,0.36675]
[1757042223770,0.2986931,111280.0,111270.0,0.03675]
[1757042223976,0.2986931,111280.0,111270.0,0.04675]
[1757042224274,0.2986931,111280.0,111270.0,0.41675]
[1757042224676,0.2986931,111280.0,111270.0,0.04675]
[1757042224876,0.2986931,111280.0,111270.0,0.36675]
[1757042225578,0.03288731,111280.0,111270.0,0.36675]
[1757042228378,0.02389,111280.0,111270.0,0.36675]
[1757042230180,0.02389,111280.0,111270.0,0.34675]
[1757042230381,0.02389,111280.0,111270.0,0.04675]
[1757042230577,0.02389,111280.0,111270.0,0.40675]
[1757042230775,0.02389,111280.0,111270.0,0.04675]
[1757042230976,0.02389,111280.0,111270.0,0.39675]
[1757042258302,0.02389,111280.0,111270.0,0.15675]
[1757042258502,0.02389,111280.0,111270.0,0.40675]
[1757042259005,0.001,111280.0,111270.0,0.64303206]
[1757042259807,0.001,111280.0,111270.0,0.40675]
[1757042260606,0.02258,111280.0,111270.0,0.40675]
[1757042261306,0.001,111280.0,111270.0,0.40675]
[1757042262311,0.02258,111280.0,111270.0,0.40675]
[1757042263105,0.02258,111280.0,111270.0,0.92883]
[1757042263910,0.02258,111280.0,111270.0,0.85883]
[1757042264106,0.02258,111280.0,111270.0,1.18883]
[1757042266712,0.25886206,111280.0,111270.0,0.36675]
[1757042266905,0.25886206,111280.0,111270.0,0.16675]
[1757042267111,0.27169206,111280.0,111270.0,0.16675]
[1757042269210,0.52169206,111280.0,111270.0,0.15316]
[1757042269514,0.0356,111270.0,111260.0,0.10658]
[1757042269714,0.27188206,111270.0,111260.0,0.28658]
[1757042270614,0.0356,111270.0,111260.0,0.28658]
[1757042270809,0.27188206,111270.0,111260.0,0.28658]
[1757042271510,0.27188206,111270.0,111260.0,0.28858]
[1757042272113,0.27188206,111270.0,111260.0,0.20378]
[1757042281229,0.25905206,111270.0,111260.0,0.20378]
[1757042281427,0.25905206,111270.0,111260.0,0.36378]
[1757042281630,0.02277,111270.0,111260.0,0.36378]
[1757042283230,0.0001,111280.0,111260.0,0.36378]
[1757042285529,0.23638206,111280.0,111260.0,0.36378]
[1757042287446,0.26586162,111270.0,111260.0,0.36378]
[1757042290139,0.26586162,111270.0,111260.0,0.36178]
[1757042290337,0.53272324,111270.0,111260.0,0.36178]
[1757042290637,0.53472324,111270.0,111260.0,0.36178]
[1757042298851,0.003,111270.0,111260.0,0.36178]
[1757042299152,0.53472324,111270.0,111260.0,0.36178]
[1757042303165,0.78472324,111270.0,111260.0,0.08]
[1757042306856,0.253,111270.0,111260.0,0.08]
[1757042307054,0.78472324,111270.0,111260.0,0.08]
[1757042307258,0.51886162,111270.0,111260.0,0.08]
[1757042307965,0.51886162,111270.0,111260.0,0.38]
[1757042308263,0.51886162,111270.0,111260.0,0.35586162]
[1757042308264,0.26886162,111270.0,111260.0,0.35586162]
[1757042308465,0.26886162,111270.0,111260.0,0.60586162]
[1757042308658,0.26886162,111270.0,111260.0,0.1]
[1757042317170,0.003,111270.0,111260.0,0.1]
[1757042317366,0.26886162,111270.0,111260.0,0.1]
[1757042320070,0.53472324,111270.0,111260.0,0.1]
[1757042322271,0.26886162,111270.0,111260.0,0.1]
[1757042322670,0.26886162,111270.0,111260.0,0.36586162]
[1757042322871,0.26886162,111270.0,111260.0,0.1]
[1757042325074,0.26886162,111270.0,111260.0,0.36586162]
[1757042326773,0.003,111270.0,111260.0,0.26586162]
[1757042326974,0.003,111270.0,111260.0,0.59586162]
[1757042327175,0.26886162,111270.0,111260.0,0.59586162]
[1757042327376,0.26886162,111270.0,111260.0,0.35586162]
[1757042327568,0.26886162,111270.0,111260.0,0.62586162]
[1757042330679,0.003,111270.0,111260.0,0.89386668]
[1757042330870,0.003,111270.0,111260.0,1.80513698]
[1757042331368,0.003,111270.0,111260.0,1.88993698]
[1757042331771,0.002,111270.0,111260.0,1.88993698]
[1757042332066,0.002,111270.0,111260.0,1.89193698]
[1757042332677,0.0001,111280.0,111260.0,1.90080721]
[1757042332977,0.0001,111280.0,111270.0,0.26586162]
[1757042333179,0.27479494,111290.0,111270.0,0.58586162]
[1757042334977,0.00893332,111290.0,111270.0,0.58586162]
[1757042335275,0.00893332,111290.0,111260.0,1.02294559]
[1757042335480,0.26586162,111280.0,111270.0,0.26586162]
[1757042335883,0.26586162,111280.0,111270.0,0.57586162]
[1757042336782,0.26686162,111280.0,111270.0,0.57586162]
[1757042336977,0.001,111280.0,111270.0,0.57586162]
[1757042338181,0.001,111280.0,111270.0,0.61124162]
[1757042343588,0.001,111280.0,111270.0,1.21696524]
[1757042343980,0.0001,111290.0,111280.0,0.1252339]
[1757042344185,0.0001,111300.0,111290.0,0.03538]
[1757042344380,0.28875162,111310.0,111300.0,0.03538]
[1757042344579,0.28865162,111310.0,111300.0,0.66124162]
[1757042344775,0.28865162,111310.0,111300.0,0.39538]
[1757042345475,0.29746829,111310.0,111300.0,0.39538]
[1757042346791,0.30046829,111310.0,111300.0,0.39538]
[1757042347587,0.03460667,111310.0,111300.0,0.39538]
[1757042351588,0.02579,111310.0,111300.0,0.39538]
[1757042352586,0.003,111310.0,111300.0,0.39538]
[1757042352896,0.02579,111310.0,111300.0,0.58153538]
[1757042353094,0.003,111310.0,111300.0,0.34538]
[1757042355497,0.003,111310.0,111300.0,0.3636663]
[1757042355796,0.02579,111310.0,111300.0,0.0536663]
[1757042356095,0.02579,111310.0,111300.0,0.3836663]
[1757042357397,0.003,111310.0,111300.0,0.3836663]
[1757042357597,0.003,111310.0,111300.0,0.3636663]
[1757042358195,0.003,111310.0,111300.0,1.67070168]
[1757042359098,0.002,111310.0,111300.0,1.67070168]
[1757042359596,0.001,111310.0,111300.0,1.67070168]
[1757042359796,0.002,111310.0,111300.0,1.67070168]
[1757042360008,0.002,111310.0,111300.0,1.1245463]
[1757042360200,0.002,111310.0,111300.0,1.5045463]
[1757042360496,0.002,111310.0,111300.0,1.4445463]
[1757042362295,0.002,111310.0,111300.0,1.1245463]
[1757042362500,0.002,111310.0,111300.0,1.68070168]
[1757042375207,0.002,111310.0,111300.0,1.77054068]
[1757042376307,0.0001,111320.0,111310.0,0.125041]
[1757042376508,0.00893198,111330.0,111320.0,0.03521]
[1757042376809,0.02256,111340.0,111330.0,0.03521]
[1757042377109,0.04778758,111340.0,111330.0,0.34521]
[1757042378210,0.04978758,111340.0,111330.0,0.34521]
[1757042378410,0.05278758,111340.0,111330.0,0.34521]
[1757042378811,0.30278758,111340.0,111330.0,0.03521]
[1757042379109,0.05278758,111340.0,111330.0,0.35521]
[1757042379308,0.05278758,111340.0,111330.0,0.42770065]
[1757042379810,0.05078758,111340.0,111330.0,0.42770065]
[1757042380012,0.04978758,111340.0,111330.0,0.10770065]
[1757042380612,0.0578303,111340.0,111330.0,0.10770065]
[1757042380812,0.0588303,111340.0,111330.0,0.10770065]
[1757042381498,0.30768568,111340.0,111330.0,0.09454065]
[1757042381911,0.30768568,111340.0,111330.0,0.10770065]
[1757042382314,0.2823581,111340.0,111330.0,0.10770065]
[1757042382612,0.30766562,111340.0,111330.0,0.10770065]
[1757042383305,0.29496562,111340.0,111330.0,0.10770065]
[1757042384110,0.05881024,111340.0,111330.0,0.10770065]
[1757042387009,0.29496562,111340.0,111330.0,0.10770065]
[1757042388417,0.2696581,111340.0,111330.0,0.10770065]
[1757042393120,0.03350272,111340.0,111330.0,0.10770065]
[1757042393323,0.2696581,111340.0,111330.0,0.10770065]
[1757042394218,0.03350272,111340.0,111330.0,0.10770065]
[1757042394422,0.2696581,111340.0,111330.0,0.10770065]
[1757042395820,0.03350272,111340.0,111330.0,0.10770065]
[1757042396021,0.2696581,111340.0,111330.0,0.10770065]
[1757042401938,0.03350272,111340.0,111330.0,0.10770065]
[1757042402136,0.2696581,111340.0,111330.0,0.10770065]
[1757042404240,0.29499577,111340.0,111330.0,0.10770065]
[1757042406139,0.29499577,111340.0,111330.0,0.48770065]
[1757042407138,0.29499577,111340.0,111330.0,0.10770065]
[1757042407539,0.32438627,111340.0,111330.0,0.10770065]
[1757042411847,0.32438627,111340.0,111330.0,0.47770065]
[1757042413752,0.32438627,111340.0,111330.0,0.10770065]
[1757042414945,0.2990486,111340.0,111330.0,0.10770065]
[1757042415646,0.03350272,111340.0,111330.0,0.10770065]
[1757042415854,0.2990486,111340.0,111330.0,0.10770065]
[1757042417153,0.03350272,111340.0,111330.0,0.10770065]
[1757042417353,0.2990486,111340.0,111330.0,0.10770065]
[1757042417650,0.2990486,111340.0,111330.0,0.37324653]
[1757042418152,0.2990486,111340.0,111330.0,0.10770065]
[1757042419952,0.3120186,111340.0,111330.0,0.37324653]
[1757042420554,0.3120186,111340.0,111330.0,0.10770065]
[1757042423454,0.2990486,111340.0,111330.0,0.10770065]
[1757042423655,0.03350272,111340.0,111330.0,0.10770065]
[1757042423856,0.2990486,111340.0,111330.0,0.10770065]
[1757042424157,0.03350272,111340.0,111330.0,0.10770065]
[1757042424361,0.3120186,111340.0,111330.0,0.10770065]
[1757042424552,0.3120186,111340.0,111330.0,0.43770065]
[1757042426559,0.03350272,111340.0,111330.0,0.43770065]
[1757042426861,0.2990486,111340.0,111330.0,0.43770065]
[1757042427460,0.2990486,111340.0,111330.0,0.10770065]
[1757042428057,0.2990486,111340.0,111330.0,0.43770065]
[1757042428359,0.2990486,111340.0,111330.0,0.47770065]
[1757042430062,0.2990486,111340.0,111330.0,0.10770065]
[1757042431762,0.32439118,111340.0,111330.0,0.10770065]
[1757042431962,0.32439118,111340.0,111330.0,0.42770065]
[1757042432163,0.32439118,111340.0,111330.0,0.43770065]
[1757042432558,0.32439118,111340.0,111330.0,0.10770065]
[1757042433064,0.32439118,111340.0,111330.0,0.45770065]
[1757042433264,0.32439118,111340.0,111330.0,0.10770065]
[1757042433863,0.32439118,111340.0,111330.0,0.43770065]
[1757042439164,0.32439118,111340.0,111330.0,0.70324653]
[1757042439566,0.32439118,111340.0,111330.0,0.10770065]
[1757042439860,0.32439118,111340.0,111330.0,0.73324653]
[1757042440063,0.2990486,111340.0,111330.0,0.10770065]
[1757042440264,0.2990486,111340.0,111330.0,0.37324653]
[1757042440964,0.3120186,111340.0,111330.0,0.10770065]
[1757042443870,0.3120186,111340.0,111330.0,0.02205]
[1757042448569,0.3120186,111340.0,111330.0,0.03473]
[1757042449868,0.2990486,111340.0,111330.0,0.65027588]
[1757042450072,0.2990486,111340.0,111330.0,0.39473]
[1757042450277,0.2990486,111340.0,111330.0,0.30027588]
[1757042450574,0.2990486,111340.0,111330.0,0.66027588]
[1757042451177,0.03350272,111340.0,111330.0,0.66027588]
[1757042451378,0.2990486,111340.0,111330.0,0.66027588]
[1757042452370,0.3118186,111340.0,111330.0,0.02205]